bitfinex-derivatives/quotes_BTCF0:USTF0_20251202
["timestamp","ask_amount","ask_price","bid_price","bid_amount"]
[1764715233953,0.47374,91750.0,91749.0,0.1216262]
[1764715234551,0.47374,91750.0,91749.0,0.11073]
[1764715235346,0.47574,91750.0,91749.0,0.11073]
[1764715236048,0.11321243,91766.0,91765.0,0.11073]
[1764715236550,0.11321243,91766.0,91765.0,0.12133255]
[1764715237348,0.11521243,91766.0,91765.0,0.12133255]
[1764715238054,0.11621243,91766.0,91765.0,0.12133255]
[1764715238445,0.00327243,91766.0,91765.0,0.12133255]
[1764715238842,0.0108914,91790.0,91789.0,0.11608]
[1764715239042,0.1319114,91790.0,91789.0,0.11608]
[1764715239946,0.12102,91790.0,91789.0,0.11608]
[1764715240351,0.12202,91790.0,91789.0,0.11608]
[1764715240547,0.0108903,91799.0,91789.0,0.11608]
[1764715240749,0.12102,91818.0,91817.0,0.12227]
[1764715242557,0.12202,91818.0,91817.0,0.12227]
[1764715244855,0.12302,91818.0,91817.0,0.12227]
[1764715247955,0.002,91818.0,91817.0,0.12227]
[1764715248367,0.48182,91833.0,91832.0,0.12227]
[1764715248558,0.4927062,91833.0,91832.0,0.12227]
[1764715248755,0.3608,91833.0,91832.0,0.1331564]
[1764715248953,0.05928,91833.0,91832.0,0.12227]
[1764715249259,0.12102,91833.0,91832.0,0.12227]
[1764715250258,0.03768,91842.0,91835.0,0.12227]
[1764715250259,0.1319059,91836.0,91835.0,0.12227]
[1764715250557,0.1587,91842.0,91841.0,0.12227]
[1764715251154,0.12102,91844.0,91843.0,0.12227]
[1764715253659,0.12102,91844.0,91843.0,0.133155]
[1764715253860,0.12102,91844.0,91843.0,0.12227]
[1764715255267,0.12102,91844.0,91843.0,0.133155]
[1764715255761,0.12102,91844.0,91843.0,0.12227]
[1764715255965,0.1212922,91846.0,91845.0,0.12227]
[1764715256967,0.1222922,91846.0,91845.0,0.12227]
[1764715259970,0.1319069,91827.0,91822.0,0.3608]
[1764715260770,0.1319069,91827.0,91826.0,0.01089792]
[1764715261174,0.1319069,91827.0,91826.0,0.01389792]
[1764715262276,0.1319069,91827.0,91826.0,0.00316337]
[1764715262476,0.5427069,91827.0,91826.0,0.00116337]
[1764715262976,0.1819069,91827.0,91826.0,0.00016337]
[1764715263280,0.1819069,91827.0,91826.0,0.00116337]
[1764715263482,0.5427069,91827.0,91826.0,0.00116337]
[1764715263666,0.5437069,91827.0,91826.0,0.00016337]
[1764715264168,0.5447069,91827.0,91826.0,0.00016337]
[1764715264366,0.11594,91804.0,91803.0,0.64869013]
[1764715265480,0.11594,91804.0,91803.0,0.65914696]
[1764715268079,0.11594,91804.0,91803.0,0.66114696]
[1764715268873,0.11610276,91813.0,91812.0,0.11255]
[1764715270277,0.11610276,91813.0,91812.0,0.11355]
[1764715270466,0.00016276,91813.0,91812.0,0.14926]
[1764715271264,0.54225,91840.0,91812.0,0.14926]
[1764715271265,0.03565,91840.0,91814.0,0.0108884]
[1764715271475,0.1624754,91840.0,91839.0,0.11255]
[1764715271777,0.1268254,91840.0,91839.0,0.11255]
[1764715271978,0.0108851,91843.0,91841.0,0.11255]
[1764715272374,0.41736,91842.0,91841.0,0.11255]
[1764715272781,0.47674,91842.0,91841.0,0.11255]
[1764715273277,0.3610722,91846.0,91841.0,0.11255]
[1764715273278,0.0002722,91846.0,91841.0,0.11255]
[1764715273574,0.0002722,91846.0,91845.0,0.1234348]
[1764715274369,0.0002722,91846.0,91845.0,0.5234348]
[1764715274570,0.15159,91868.0,91867.0,0.11255]
[1764715275088,0.11594,91868.0,91867.0,0.11255]
[1764715276068,0.11794,91868.0,91867.0,0.12280863]
[1764715276273,0.11894,91868.0,91867.0,0.13369083]
[1764715276581,0.11894,91868.0,91867.0,0.11255]
[1764715276778,0.05956,91868.0,91867.0,0.11255]
[1764715276976,0.05956,91868.0,91867.0,0.48409189]
[1764715278181,0.003,91868.0,91867.0,0.48409189]
[1764715278572,0.0004355,91868.0,91867.0,0.48409189]
[1764715280383,0.001,91868.0,91867.0,0.38242409]
[1764715280581,0.001,91868.0,91867.0,0.49497409]
[1764715281581,0.00027208,91886.0,91867.0,0.49497409]
[1764715281582,0.01115208,91886.0,91885.0,0.11255]
[1764715283291,0.01215208,91886.0,91885.0,0.11255]
[1764715283891,0.06871208,91886.0,91885.0,0.11255]
[1764715284185,0.12909208,91886.0,91885.0,0.11255]
[1764715286387,0.00227208,91886.0,91885.0,0.11255]
[1764715292387,0.11821208,91886.0,91885.0,0.11255]
[1764715292895,0.11821208,91886.0,91885.0,0.1234301]
[1764715293096,0.11821208,91886.0,91885.0,0.11255]
[1764715295493,0.13889,91884.0,91883.0,0.3608]
[1764715295794,0.13889,91884.0,91883.0,0.4142]
[1764715295999,0.13889,91884.0,91883.0,0.46717]
[1764715297490,0.13989,91884.0,91883.0,0.46717]
[1764715298292,0.13989,91884.0,91883.0,0.3608]
[1764715298596,0.13989,91884.0,91883.0,0.46717]
[1764715299699,0.10779,91884.0,91883.0,0.46717]
[1764715300698,0.001,91884.0,91883.0,0.46717]
[1764715302293,0.001,91884.0,91883.0,0.46917]
[1764715302990,0.06548208,91886.0,91885.0,0.10637]
[1764715304002,0.01115208,91886.0,91885.0,0.10637]
[1764715304300,0.11794208,91886.0,91885.0,0.14518512]
[1764715304901,0.11794208,91886.0,91885.0,0.14718512]
[1764715305105,0.11794208,91886.0,91885.0,0.10837]
[1764715306902,0.11794208,91886.0,91885.0,0.002]
[1764715307094,0.11794208,91886.0,91885.0,0.03113655]
[1764715307495,0.11794208,91886.0,91885.0,0.08453655]
[1764715308001,0.11794208,91886.0,91885.0,0.03113655]
[1764715308300,0.0108814,91874.0,91873.0,0.03884614]
[1764715308597,0.10679,91869.0,91867.0,0.04958803]
[1764715308800,0.13889,91868.0,91867.0,0.10298803]
[1764715309105,0.13889,91868.0,91867.0,0.01074189]
[1764715309404,0.13889,91868.0,91860.0,0.50644]
[1764715309405,0.10679,91865.0,91864.0,0.0534]
[1764715309602,0.13889,91861.0,91860.0,0.14521614]
[1764715310108,0.1497729,91861.0,91860.0,0.10637]
[1764715310492,0.1497729,91861.0,91860.0,0.11674869]
[1764715311097,0.1497729,91861.0,91860.0,0.01037869]
[1764715311292,0.10679,91859.0,91858.0,0.05356337]
[1764715311495,0.10679,91859.0,91858.0,0.10653337]
[1764715312004,0.10679,91859.0,91858.0,0.01059485]
[1764715314411,0.10679,91859.0,91858.0,0.01359485]
[1764715315704,0.10679,91859.0,91858.0,0.06699485]
[1764715316408,0.00027208,91886.0,91873.0,0.08878]
[1764715316606,0.05460208,91886.0,91885.0,0.08878]
[1764715317108,0.10706208,91886.0,91885.0,0.08878]
[1764715318609,0.10706208,91886.0,91885.0,0.45158]
[1764715320704,0.00027208,91886.0,91885.0,0.45158]
[1764715321294,0.00027208,91886.0,91885.0,0.51009769]
[1764715322513,0.00027208,91886.0,91885.0,0.45158]
[1764715323711,0.0321,91924.0,91912.0,0.09922]
[1764715324014,0.10364,91914.0,91913.0,0.46002]
[1764715324714,0.10364,91914.0,91913.0,0.82082]
[1764715325311,0.13574,91924.0,91923.0,0.09922]
[1764715325509,0.03266,91931.0,91925.0,0.09922]
[1764715326403,0.05292196,91926.0,91925.0,0.09922]
[1764715326808,0.05292196,91926.0,91925.0,0.10964508]
[1764715327012,0.1363,91952.0,91951.0,0.09868]
[1764715327809,0.10364,91948.0,91947.0,0.91794]
[1764715328013,0.10364,91948.0,91947.0,0.96728]
[1764715328316,0.08531,91952.0,91951.0,0.09868]
[1764715328521,0.08631,91952.0,91951.0,0.09868]
[1764715329113,0.001,91952.0,91951.0,0.09868]
[1764715329307,0.10464,91952.0,91951.0,0.09868]
[1764715329507,0.10664,91952.0,91951.0,0.09868]
[1764715329707,0.003,91952.0,91951.0,0.09868]
[1764715330120,0.05465,91952.0,91951.0,0.09868]
[1764715330704,0.002,91952.0,91951.0,0.09868]
[1764715331116,0.003,91952.0,91951.0,0.09868]
[1764715332413,0.1175121,91952.0,91951.0,0.09868]
[1764715333011,0.1145126,91948.0,91947.0,0.3608]
[1764715333209,0.1145132,91943.0,91942.0,0.00016317]
[1764715333516,0.1145132,91943.0,91942.0,0.04950317]
[1764715333704,0.1145132,91943.0,91942.0,0.00016317]
[1764715335624,0.1155132,91943.0,91942.0,0.00016317]
[1764715337411,0.1155132,91943.0,91942.0,0.04950317]
[1764715337914,0.1155132,91943.0,91942.0,0.09884317]
[1764715338526,0.10464,91943.0,91942.0,0.09884317]
[1764715339124,0.001,91943.0,91942.0,0.09884317]
[1764715344418,0.001,91943.0,91942.0,0.70628317]
[1764715344617,0.001,91943.0,91942.0,0.90625012]
[1764715344818,0.10391184,91966.0,91965.0,0.09868]
[1764715345625,0.00027184,91966.0,91965.0,0.09868]
[1764715345817,0.10391184,91966.0,91965.0,0.45948]
[1764715346022,0.10491184,91966.0,91965.0,0.45948]
[1764715346226,0.12078234,91966.0,91965.0,0.45948]
[1764715346723,0.11478234,91966.0,91965.0,0.04934]
[1764715346919,0.10364,91958.0,91957.0,0.3608]
[1764715347930,0.1145127,91947.0,91946.0,0.3608]
[1764715350134,0.1145127,91947.0,91946.0,0.3618]
[1764715350626,0.1145132,91943.0,91937.0,0.3608]
[1764715352719,0.10364,91943.0,91937.0,0.3608]
[1764715353127,0.10364,91943.0,91937.0,0.39956021]
[1764715353933,0.10364,91943.0,91937.0,0.3608]
[1764715355234,0.10364,91943.0,91938.0,0.03876021]
[1764715356436,0.10364,91943.0,91937.0,0.39956021]
[1764715359335,0.10364,91943.0,91942.0,0.03388317]
[1764715360240,0.10364,91943.0,91942.0,0.00016317]
[1764715364037,0.10364,91943.0,91942.0,0.03083317]
[1764715364434,0.10364,91943.0,91942.0,0.00016317]
[1764715367042,0.1065845,91932.0,91930.0,0.03876021]
[1764715367242,0.1065852,91926.0,91925.0,0.01042508]
[1764715367432,0.106586,91919.0,91918.0,0.43023021]
[1764715367632,0.106586,91919.0,91918.0,0.46090021]
[1764715368133,0.09571,91919.0,91918.0,0.42214]
[1764715368738,0.09571,91919.0,91918.0,0.43483596]
[1764715369440,0.09571,91919.0,91918.0,0.37349596]
[1764715369742,0.09571,91919.0,91918.0,0.43483596]
[1764715370334,0.09571,91919.0,91918.0,0.43583596]
[1764715370642,0.09571,91919.0,91918.0,0.46491516]
[1764715371234,0.09571,91919.0,91918.0,0.46490739]
[1764715372347,0.09571,91919.0,91918.0,0.43583596]
[1764715374634,0.09571,91919.0,91918.0,0.46490739]
[1764715375646,0.09571,91919.0,91918.0,0.43583596]
[1764715377244,0.09571,91919.0,91918.0,0.46490739]
[1764715377750,0.09571,91919.0,91918.0,0.43423739]
[1764715377948,0.09571,91919.0,91918.0,0.46490739]
[1764715378151,0.09571,91919.0,91918.0,0.37449596]
[1764715378350,0.09571,91919.0,91918.0,0.40356739]
[1764715378546,0.09571,91919.0,91918.0,0.46490739]
[1764715381754,0.09571,91919.0,91918.0,0.43583596]
[1764715381953,0.12398,91924.0,91923.0,0.0722156]
[1764715382253,0.00016251,91928.0,91923.0,0.0722156]
[1764715382254,0.00016251,91928.0,91923.0,0.0290689]
[1764715382549,0.01103751,91928.0,91927.0,0.42214]
[1764715382746,0.10674751,91928.0,91927.0,0.42214]
[1764715384754,0.10674751,91928.0,91927.0,0.42314]
[1764715385250,0.06093751,91928.0,91927.0,0.42314]
[1764715385444,0.01103751,91928.0,91927.0,0.42314]
[1764715385645,0.05615751,91928.0,91927.0,0.42314]
[1764715386050,0.10080751,91928.0,91927.0,0.42314]
[1764715387554,0.01103751,91928.0,91927.0,0.42314]
[1764715391055,0.05615751,91928.0,91927.0,0.42314]
[1764715391257,0.10080751,91928.0,91927.0,0.42314]
[1764715392163,0.10080751,91928.0,91927.0,0.3618]
[1764715392363,0.10080751,91928.0,91927.0,0.40058496]
[1764715392661,0.10080751,91928.0,91927.0,0.03978496]
[1764715392861,0.10080751,91928.0,91927.0,0.001]
[1764715393666,0.46160751,91928.0,91927.0,0.001]
[1764715394067,0.1006452,91926.0,91924.0,0.02910122]
[1764715394262,0.1294055,91924.0,91923.0,0.04817122]
[1764715395774,0.1294055,91924.0,91923.0,0.04917122]
[1764715396276,0.1294055,91924.0,91923.0,0.02007]
[1764715398074,0.1294055,91924.0,91923.0,0.03011739]
[1764715398275,0.1294055,91924.0,91911.0,0.00013026]
[1764715398276,0.0108769,91912.0,91911.0,0.00013026]
[1764715398482,0.1006469,91912.0,91911.0,0.00013026]
[1764715398777,0.1006469,91912.0,91911.0,0.01076783]
[1764715399170,0.08977,91910.0,91909.0,0.00016317]
[1764715399369,0.08977,91910.0,91909.0,0.01064362]
[1764715399772,0.08977,91910.0,91909.0,0.00016317]
[1764715400278,0.08989801,91910.0,91909.0,0.00016317]
[1764715400481,0.08989801,91910.0,91909.0,0.00316317]
[1764715400888,0.08989801,91910.0,91909.0,0.00416317]
[1764715411081,0.08977,91901.0,91900.0,0.3608]
[1764715412079,0.1006482,91901.0,91900.0,0.37155969]
[1764715412380,0.1006482,91901.0,91900.0,0.37255969]
[1764715412584,0.1006482,91901.0,91900.0,0.37655969]
[1764715415274,0.1006482,91901.0,91900.0,0.37555969]
[1764715415487,0.1026482,91901.0,91900.0,0.37155969]
[1764715419189,0.1026482,91901.0,91900.0,0.01075969]
[1764715419392,0.1002891,91893.0,91892.0,0.44923]
[1764715419585,0.1002891,91893.0,91892.0,0.08843]
[1764715420384,0.1002891,91893.0,91892.0,0.09911455]
[1764715420588,0.1012891,91893.0,91892.0,0.09911455]
[1764715420988,0.1012891,91893.0,91891.0,0.00016317]
[1764715420989,0.08941,91892.0,91891.0,0.00016317]
[1764715421182,0.08941,91887.0,91886.0,0.00027208]
[1764715421382,0.02757,91890.0,91874.0,0.3608]
[1764715421383,0.1278613,91875.0,91874.0,0.06422]
[1764715421591,0.1278613,91875.0,91874.0,0.03211]
[1764715421983,0.08941,91874.0,91873.0,0.3608]
[1764715423294,0.08941,91874.0,91873.0,0.37130227]
[1764715423598,0.08941,91874.0,91873.0,0.01050227]
[1764715423794,0.08941,91865.0,91864.0,0.42518327]
[1764715423995,0.1002924,91865.0,91864.0,0.42518327]
[1764715424195,0.08941,91865.0,91864.0,0.42518327]
[1764715424998,0.08941,91865.0,91864.0,0.42918327]
[1764715426491,0.08941,91865.0,91864.0,0.43963517]
[1764715427688,0.0563619,91870.0,91864.0,0.37541517]
[1764715427889,0.02769863,91875.0,91864.0,0.38629767]
[1764715428097,0.0563618,91871.0,91870.0,0.06422]
[1764715429899,0.1002918,91871.0,91870.0,0.06422]
[1764715430586,0.0563618,91871.0,91870.0,0.06622]
[1764715430902,0.00012863,91875.0,91874.0,0.06422]
[1764715431199,0.00012863,91875.0,91874.0,0.42502]
[1764715431796,0.08953863,91875.0,91874.0,0.42502]
[1764715431990,0.08953863,91875.0,91874.0,0.42602]
[1764715432192,0.08953863,91875.0,91874.0,0.39391]
[1764715432797,0.08953863,91875.0,91874.0,0.42702]
[1764715433588,0.08953863,91875.0,91874.0,0.002]
[1764715433994,0.08953863,91875.0,91874.0,0.06622]
[1764715434184,0.08953863,91875.0,91874.0,0.42702]
[1764715437906,0.00012863,91875.0,91874.0,0.42702]
[1764715438091,0.04560863,91875.0,91874.0,0.42702]
[1764715438292,0.08953863,91875.0,91874.0,0.42702]
[1764715438899,0.00012863,91875.0,91874.0,0.42702]
[1764715439288,0.00012863,91875.0,91874.0,0.46582548]
[1764715439602,0.00012863,91875.0,91874.0,0.42702]
[1764715439899,0.08953863,91875.0,91874.0,0.42702]
[1764715440094,0.08953863,91875.0,91874.0,0.46582446]
[1764715440295,0.08953863,91875.0,91874.0,0.42702]
[1764715441300,0.04560863,91875.0,91874.0,0.42702]
[1764715441703,0.08953863,91875.0,91874.0,0.42702]
[1764715442503,0.04560863,91875.0,91874.0,0.42702]
[1764715445101,0.08577863,91875.0,91874.0,0.42702]
[1764715445501,0.08577863,91875.0,91874.0,0.39491]
[1764715445804,0.08577863,91875.0,91874.0,0.03411]
[1764715446006,0.08577863,91875.0,91874.0,0.05858]
[1764715447306,0.08577863,91875.0,91874.0,0.002]
[1764715449610,0.08577863,91875.0,91874.0,0.02647]
[1764715449907,0.08577863,91875.0,91874.0,0.002]
[1764715452306,0.08577863,91875.0,91874.0,0.02647]
[1764715455112,0.08577863,91875.0,91874.0,0.002]
[1764715457813,0.0911022,91867.0,91866.0,0.03880446]
[1764715458114,0.08022,91865.0,91864.0,3.27e-06]
[1764715459309,0.0911045,91848.0,91847.0,0.3608]
[1764715459511,0.0911045,91848.0,91847.0,0.39624]
[1764715459707,0.0911045,91848.0,91847.0,0.40684721]
[1764715460322,0.09122874,91848.0,91847.0,0.40684721]
[1764715461916,0.09122874,91848.0,91847.0,0.37140721]
[1764715462117,0.09122874,91848.0,91847.0,0.37740721]
[1764715462524,0.09122874,91848.0,91847.0,0.37240721]
[1764715462725,0.09122874,91848.0,91847.0,0.37340721]
[1764715463021,0.11864874,91848.0,91847.0,0.3628]
[1764715463227,0.11864874,91848.0,91838.0,0.00016327]
[1764715463228,0.08022,91847.0,91838.0,0.00016327]
[1764715463526,0.56022,91847.0,91843.0,0.01041942]
[1764715463715,0.56022,91847.0,91838.0,0.00016327]
[1764715464120,0.56022,91847.0,91838.0,7e-08]
[1764715464121,0.0911055,91839.0,91838.0,7e-08]
[1764715464429,1.0775055,91839.0,91838.0,7e-08]
[1764715464725,1.79921236,91839.0,91838.0,7e-08]
[1764715465122,0.0911086,91813.0,91812.0,0.44506]
[1764715465427,0.09123411,91813.0,91812.0,0.01073445]
[1764715465626,0.0911093,91807.0,91806.0,0.08453231]
[1764715466423,0.0911093,91807.0,91806.0,0.09496347]
[1764715466926,0.0911093,91807.0,91806.0,0.01070347]
[1764715467124,0.117922,91784.0,91783.0,0.3608]
[1764715467319,0.117922,91784.0,91774.0,0.3608]
[1764715467320,0.0911131,91775.0,91774.0,0.44506]
[1764715467915,0.0911131,91775.0,91774.0,0.45554992]
[1764715468115,0.09119835,91775.0,91774.0,0.45554992]
[1764715468422,0.09119835,91775.0,91774.0,0.45654992]
[1764715469027,0.09119835,91775.0,91774.0,0.09674992]
[1764715469426,0.09119835,91775.0,91774.0,0.05301992]
[1764715469828,0.09119835,91775.0,91774.0,0.002]
[1764715470014,0.45199835,91775.0,91774.0,0.002]
[1764715473525,0.95891835,91775.0,91774.0,0.002]
[1764715475642,0.0966539,91768.0,91767.0,0.01064236]
[1764715475836,0.08576,91766.0,91765.0,0.00010972]
[1764715477237,0.08576,91766.0,91765.0,0.04199972]
[1764715477439,0.08576,91766.0,91765.0,0.04499972]
[1764715478132,0.08576,91766.0,91765.0,0.00310972]
[1764715479147,0.44656,91766.0,91765.0,0.00310972]
[1764715479332,0.44656,91766.0,91765.0,0.00210972]
[1764715480448,0.44956,91766.0,91765.0,0.00010972]
[1764715481150,0.95652,91766.0,91765.0,0.00010972]
[1764715489848,8.525e-05,91775.0,91774.0,0.08236]
[1764715490146,8.525e-05,91775.0,91774.0,0.0932532]
[1764715491142,0.00108525,91775.0,91774.0,0.0932532]
[1764715491544,8.525e-05,91775.0,91774.0,0.0932532]
[1764715491752,0.00108525,91775.0,91774.0,0.0932532]
[1764715492946,0.00016338,91784.0,91783.0,0.0932522]
[1764715493947,0.00026131,91784.0,91783.0,0.0932522]
[1764715494950,0.00126131,91784.0,91783.0,0.0932522]
[1764715495652,0.3716901,91800.0,91799.0,0.08236]
[1764715496360,0.0108887,91813.0,91799.0,0.08236]
[1764715496361,0.10758,91819.0,91811.0,0.0108887]
[1764715496557,0.0247,91812.0,91811.0,0.0108887]
[1764715496754,0.06747,91812.0,91811.0,0.3716887]
[1764715497658,0.10758,91812.0,91811.0,0.3716887]
[1764715498154,0.10758,91812.0,91811.0,0.3726887]
[1764715498659,0.10758,91812.0,91811.0,0.3716887]
[1764715499458,0.04277,91842.0,91841.0,0.0108853]
[1764715499764,0.04277,91842.0,91841.0,0.3716853]
[1764715499959,0.08288,91842.0,91841.0,0.3608]
[1764715500556,0.08288,91842.0,91841.0,0.3730852]
[1764715502155,0.0247,91848.0,91841.0,0.3730852]
[1764715502156,0.00016338,91851.0,91850.0,0.0108842]
[1764715502357,0.10758,91872.0,91851.0,0.0108841]
[1764715502561,0.10758,91872.0,91867.0,0.0108821]
[1764715502763,0.10758,91872.0,91864.0,0.3608]
[1764715502962,0.04806,91865.0,91864.0,0.3608]
[1764715503262,0.1038424,91865.0,91864.0,0.29455]
[1764715503761,0.1038435,91856.0,91855.0,0.00016328]
[1764715505262,0.1048435,91856.0,91855.0,0.00016328]
[1764715505766,0.1038435,91856.0,91855.0,0.00016328]
[1764715505966,0.1058435,91856.0,91855.0,0.00016328]
[1764715506962,0.1068435,91856.0,91855.0,0.00016328]
[1764715508166,0.003,91856.0,91855.0,0.09158328]
[1764715510053,0.002,91856.0,91855.0,0.09158328]
[1764715510460,0.103843,91861.0,91860.0,0.09142]
[1764715510656,0.103843,91861.0,91855.0,0.00016328]
[1764715510657,0.3608,91865.0,91864.0,0.04528]
[1764715510860,0.11766,91872.0,91871.0,0.09142]
[1764715512173,0.12066,91872.0,91871.0,0.09142]
[1764715513171,0.12166,91872.0,91871.0,0.09142]
[1764715516876,0.12166,91872.0,91871.0,0.1023017]
[1764715517065,0.004,91872.0,91871.0,0.1023017]
[1764715518370,0.004,91872.0,91860.0,0.3608]
[1764715518371,0.12089,91872.0,91860.0,0.3608]
[1764715518674,0.09296,91861.0,91860.0,0.3608]
[1764715519772,0.09396,91861.0,91860.0,0.3608]
[1764715523670,0.09396,91861.0,91860.0,0.40608]
[1764715525173,0.1343935,91856.0,91855.0,0.00016328]
[1764715525578,0.1067152,91842.0,91841.0,0.3730852]
[1764715526281,0.1067152,91842.0,91841.0,0.0122852]
[1764715526479,0.1067161,91834.0,91833.0,0.3608]
[1764715526675,0.1067161,91834.0,91833.0,0.40873]
[1764715527182,0.1067161,91834.0,91833.0,0.47025934]
[1764715529174,0.1067161,91834.0,91833.0,0.47125934]
[1764715532579,0.1067161,91834.0,91833.0,0.11045934]
[1764715547901,0.1067161,91834.0,91833.0,0.01328934]
[1764715560314,0.12923234,91834.0,91833.0,0.01328934]
[1764715563113,0.08485,91833.0,91832.0,0.00016328]
[1764715563309,0.10736624,91833.0,91832.0,0.00016328]
[1764715563812,0.0957386,91813.0,91812.0,0.09109262]
[1764715564014,0.0957386,91813.0,91812.0,0.03293]
[1764715564218,0.0957386,91813.0,91812.0,0.04665407]
[1764715564716,0.0957386,91813.0,91806.0,0.05843493]
[1764715564717,0.0957393,91807.0,91806.0,0.00027231]
[1764715564915,0.1182566,91807.0,91806.0,0.01383381]
[1764715566421,0.0957393,91807.0,91806.0,0.01383381]
[1764715566617,0.11823251,91807.0,91806.0,0.01383381]
[1764715566815,0.11823251,91807.0,91799.0,0.00011432]
[1764715566816,0.0108901,91800.0,91799.0,1e-08]
[1764715567013,0.05998522,91800.0,91799.0,1e-08]
[1764715567734,0.14483522,91800.0,91799.0,1e-08]
[1764715567923,0.19491371,91800.0,91799.0,1e-08]
[1764715568215,0.1223412,91791.0,91790.0,0.00010992]
[1764715568420,0.6289412,91791.0,91790.0,0.00010992]
[1764715568810,0.65140472,91791.0,91790.0,0.00010992]
[1764715569521,0.65140472,91791.0,91760.0,0.21990888]
[1764715569522,0.08485,91767.0,91755.0,0.09164262]
[1764715569711,0.1223462,91749.0,91748.0,0.06696]
[1764715570020,0.1223462,91749.0,91748.0,0.08089487]
[1764715571522,0.1223462,91749.0,91748.0,0.08289487]
[1764715574529,0.1223462,91749.0,91748.0,0.01593487]
[1764715575718,0.1223462,91749.0,91748.0,0.00743377]
[1764715575925,0.1223462,91749.0,91748.0,0.002]
[1764715576219,0.1223462,91749.0,91748.0,0.06896]
[1764715577622,0.4831454,91756.0,91755.0,0.06696]
[1764715577820,0.47225,91756.0,91755.0,0.06696]
[1764715578122,0.3608,91756.0,91755.0,0.06696]
[1764715579118,0.04224,91756.0,91755.0,0.06696]
[1764715579330,0.00016347,91758.0,91757.0,0.06696]
[1764715579532,0.00016347,91758.0,91757.0,0.06796]
[1764715579713,8.117e-05,91766.0,91765.0,0.0778543]
[1764715579914,8.117e-05,91766.0,91765.0,0.4386543]
[1764715581424,8.117e-05,91766.0,91765.0,0.4396543]
[1764715582013,0.42964,91798.0,91797.0,0.03332]
[1764715582322,0.42964,91798.0,91797.0,0.06664]
[1764715582323,0.4831404,91798.0,91797.0,0.06664]
[1764715582531,0.4405304,91798.0,91797.0,0.06664]
[1764715583126,0.4815404,91798.0,91797.0,0.06664]
[1764715583824,0.00016347,91807.0,91788.0,0.00016347]
[1764715583825,0.3608,91806.0,91792.0,0.01325]
[1764715584028,0.00016347,91807.0,91806.0,0.05766]
[1764715585526,0.00016347,91807.0,91806.0,0.05966]
[1764715585826,0.00016347,91807.0,91806.0,0.06066]
[1764715586418,0.3608,91826.0,91825.0,0.05766]
[1764715586611,0.0108853,91841.0,91840.0,0.05766]
[1764715587013,0.0516553,91841.0,91840.0,0.05766]
[1764715587620,0.0946653,91841.0,91840.0,0.05766]
[1764715587918,0.0946653,91841.0,91840.0,0.07154801]
[1764715588314,0.0128853,91841.0,91840.0,0.07154801]
[1764715588518,0.0536553,91841.0,91840.0,0.07154801]
[1764715588922,0.0546553,91841.0,91840.0,0.07154801]
[1764715591115,0.003,91841.0,91840.0,0.07154801]
[1764715591315,0.04377,91841.0,91840.0,0.07154801]
[1764715591824,0.003,91841.0,91840.0,0.07154801]
[1764715594324,0.04377,91841.0,91840.0,0.07154801]
[1764715594528,0.08488,91841.0,91840.0,0.07154801]
[1764715594714,0.08488,91841.0,91840.0,0.04271801]
[1764715595031,0.08488,91841.0,91840.0,0.07244801]
[1764715595331,0.08488,91841.0,91840.0,0.04271801]
[1764715595633,0.0957653,91841.0,91840.0,0.07244801]
[1764715596830,0.08222,91835.0,91834.0,0.3608]
[1764715597032,0.0108861,91834.0,91831.0,0.00016338]
[1764715597329,0.0108861,91834.0,91794.0,0.03864486]
[1764715597330,0.0108889,91811.0,91802.0,0.3608]
[1764715597630,0.08222,91803.0,91802.0,0.41393327]
[1764715597928,0.0931098,91803.0,91802.0,0.37470327]
[1764715598514,0.08222,91803.0,91802.0,0.37470327]
[1764715598713,0.08222,91803.0,91802.0,0.45319327]
[1764715600227,0.08222,91803.0,91802.0,0.45619327]
[1764715600531,0.08222,91803.0,91802.0,0.45519327]
[1764715600735,0.08322,91803.0,91802.0,0.45219327]
[1764715603624,0.001,91803.0,91802.0,0.45219327]
[1764715604136,0.00016338,91812.0,91811.0,0.09567]
[1764715604331,0.00016338,91812.0,91811.0,0.1065588]
[1764715606337,0.00116338,91812.0,91811.0,0.1065588]
[1764715606920,0.00016338,91812.0,91811.0,0.1075588]
[1764715609242,0.00016338,91812.0,91811.0,0.1065588]
[1764715610033,0.00016338,91812.0,91811.0,0.1075588]
[1764715611343,0.00016338,91812.0,91811.0,0.09667]
[1764715611843,0.09227338,91812.0,91811.0,0.09667]
[1764715612542,0.09227338,91812.0,91811.0,0.09567]
[1764715613638,0.04664338,91812.0,91811.0,0.09567]
[1764715613845,0.09227338,91812.0,91811.0,0.09567]
[1764715614145,0.00016338,91812.0,91811.0,0.09567]
[1764715618839,0.00016338,91812.0,91811.0,0.1065588]
[1764715621358,0.01105208,91812.0,91811.0,0.1065588]
[1764715621535,0.00016338,91812.0,91811.0,0.1065588]
[1764715621941,0.00016338,91812.0,91811.0,0.1075588]
[1764715622446,0.00016338,91812.0,91811.0,0.1065588]
[1764715622641,0.00016338,91812.0,91811.0,0.1075588]
[1764715623243,0.00016338,91812.0,91811.0,0.14620366]
[1764715623443,0.00016338,91812.0,91811.0,0.1075588]
[1764715623643,0.01105208,91812.0,91811.0,0.1075588]
[1764715623839,0.00016338,91812.0,91811.0,0.1075588]
[1764715624045,0.09355338,91812.0,91811.0,0.14653663]
[1764715624244,0.09355338,91812.0,91811.0,0.1075588]
[1764715624854,0.09355338,91812.0,91811.0,0.1065588]
[1764715625042,0.09355338,91812.0,91811.0,0.1075588]
[1764715625444,0.09355338,91812.0,91811.0,0.1065588]
[1764715626251,0.09355338,91812.0,91811.0,0.14557853]
[1764715626448,0.09355338,91812.0,91811.0,0.09567]
[1764715627051,0.09355338,91812.0,91811.0,0.09336]
[1764715627242,0.11033338,91812.0,91811.0,0.0471]
[1764715627548,0.1045594,91806.0,91805.0,0.043]
[1764715627761,0.1045601,91800.0,91799.0,0.12830886]
[1764715627946,0.1045601,91800.0,91799.0,0.08926]
[1764715628348,0.1045601,91800.0,91799.0,0.01500916]
[1764715628648,0.1045606,91796.0,91795.0,0.03904886]
[1764715628852,0.1045606,91796.0,91795.0,0.08204886]
[1764715629052,0.1045606,91796.0,91795.0,0.05778507]
[1764715630148,0.4653606,91796.0,91795.0,0.01478507]
[1764715630348,0.09367,91794.0,91793.0,0.00016338]
[1764715631356,0.11588,91784.0,91780.0,0.03904886]